bitfinex/quotes_ETHUSD_20250420
["timestamp","ask_amount","ask_price","bid_price","bid_amount"]
[1745146973710,11.36703883,1571.6,1571.2,54.509]
[1745146974032,1.13670388,1571.5,1571.2,54.509]
[1745146974224,4.33970333,1571.6,1571.2,54.509]
[1745146975937,4.68810732,1571.6,1571.2,54.509]
[1745146976336,0.58100333,1571.5,1571.2,54.509]
[1745146982221,0.55,1571.4,1571.2,54.509]
[1745146982426,0.58100333,1571.5,1571.2,54.509]
[1745146982609,1.04984334,1571.5,1571.2,54.509]
[1745146982810,0.58100333,1571.5,1571.3,0.7503]
[1745146984649,0.58100333,1571.5,1571.2,54.509]
[1745146985007,0.58100333,1571.5,1571.3,6.5]
[1745146985409,0.58100333,1571.5,1571.3,7.2503]
[1745146986855,0.58100333,1571.6,1571.3,7.2503]
[1745146987011,1.09358639,1571.6,1571.3,7.2503]
[1745146988057,0.56414113,1571.6,1571.3,7.2503]
[1745146997568,0.56414113,1571.6,1571.3,6.5]
[1745146997868,0.7655,1571.5,1571.3,6.5]
[1745146999052,0.56414113,1571.6,1571.3,6.5]
[1745146999361,0.56414113,1571.6,1571.4,0.7663]
[1745146999728,7.54482722,1571.7,1571.4,0.7663]
[1745146999929,4.1961304,1571.7,1571.5,0.7663]
[1745147002986,4.1961304,1571.7,1571.4,0.7663]
[1745147003733,0.7889,1571.8,1571.3,6.5]
[1745147004230,7.4759,1571.8,1571.3,6.5]
[1745147004471,0.74759,1571.7,1571.3,6.5]
[1745147004677,0.7889,1571.8,1571.3,6.5]
[1745147005371,1.25736709,1571.8,1571.3,6.5]
[1745147005858,1.8388702,1571.8,1571.3,6.5]
[1745147006370,4.8388702,1571.8,1571.3,6.5]
[1745147006570,5.1873295,1571.8,1571.3,6.5]
[1745147006872,4.71886241,1571.8,1571.3,6.5]
[1745147007071,0.47188624,1571.7,1571.3,6.5]
[1745147008073,0.772,1571.6,1571.3,6.5]
[1745147009236,4.24388624,1571.7,1571.3,6.5]
[1745147009552,4.82538935,1571.7,1571.3,6.5]
[1745147010498,5.17408296,1571.7,1571.3,6.5]
[1745147010700,0.5174083,1571.6,1571.3,6.5]
[1745147011363,0.5174083,1571.6,1571.4,54.5]
[1745147012506,0.93019672,1571.7,1571.4,55.3296]
[1745147013177,4.1961304,1571.8,1571.4,55.3296]
[1745147013868,0.7925,1571.7,1571.4,55.3296]
[1745147014221,3.7925,1571.7,1571.4,54.5]
[1745147015007,4.37400311,1571.7,1571.4,54.5]
[1745147017374,4.72285433,1571.7,1571.4,54.5]
[1745147019008,0.93035433,1571.7,1571.4,54.5]
[1745147019220,0.58150311,1571.7,1571.4,54.5]
[1745147020086,3.58150311,1571.7,1571.4,54.5]
[1745147023117,4.34390311,1571.7,1571.4,54.5]
[1745147023294,0.43439031,1571.6,1571.4,54.5]
[1745147024628,3.93051144,1571.7,1571.4,54.5]
[1745147024827,3.58150311,1571.7,1571.4,54.5]
[1745147025014,0.58150311,1571.7,1571.5,0.798]
[1745147025502,4.77763351,1571.8,1571.5,0.798]
[1745147027531,4.1961304,1571.8,1571.5,0.798]
[1745147028129,0.58150311,1571.9,1571.5,0.798]
[1745147028509,3.58150311,1571.9,1571.5,0.798]
[1745147028706,0.58150311,1571.8,1571.5,0.798]
[1745147031538,0.58150311,1571.8,1571.6,6.474]
[1745147031830,0.58150311,1571.7,1571.6,6.474]
[1745147034440,4.13150311,1571.7,1571.6,6.474]
[1745147034622,4.1527958,1571.7,1571.6,6.474]
[1745147036839,4.50183895,1571.7,1571.6,6.474]
[1745147040038,5.05183895,1571.7,1571.6,6.474]
[1745147042145,4.50183895,1571.7,1571.6,6.474]
[1745147042442,3.93054626,1571.7,1571.6,6.474]
[1745147042945,3.58150311,1571.7,1571.6,6.474]
[1745147044549,0.58150311,1571.7,1571.6,6.474]
[1745147045043,0.58150311,1571.7,1571.6,7.2557]
[1745147045606,4.1961304,1571.8,1571.6,7.2557]
[1745147047623,4.77763351,1571.8,1571.6,6.474]
[1745147047822,5.33840686,1571.8,1571.6,6.474]
[1745147048432,0.8301,1571.7,1571.6,6.474]
[1745147048848,1.41160311,1571.7,1571.6,6.474]
[1745147049862,0.8301,1571.7,1571.6,6.474]
[1745147050067,1.81373612,1571.8,1571.6,6.474]
[1745147050225,1.05413612,1571.8,1571.6,7.3067]
[1745147051077,1.60413612,1571.8,1571.7,54.497]
[1745147051227,2.18416277,1571.8,1571.7,54.497]
[1745147052140,2.94376277,1571.8,1571.7,54.497]
[1745147052341,3.293116,1571.8,1571.7,54.497]
[1745147054083,0.55,1571.5,1571.3,54.497]
[1745147054369,0.55,1571.5,1571.4,6.474]
[1745147054877,1.13150311,1571.5,1571.4,6.474]
[1745147055168,1.89600311,1571.5,1571.4,6.474]
[1745147058466,5.23801195,1571.5,1571.4,6.474]
[1745147058661,9.06181315,1571.5,1571.4,6.474]
[1745147058869,9.41048933,1571.5,1571.4,6.461]
[1745147059667,6.06848049,1571.5,1571.4,6.461]
[1745147063180,12.13848049,1571.5,1571.4,6.461]
[1745147064270,19.65597392,1571.5,1571.4,6.461]
[1745147064774,26.34297392,1571.5,1571.4,6.461]
[1745147065276,19.65597392,1571.5,1571.4,6.461]
[1745147067145,19.10597392,1571.5,1571.4,6.461]
[1745147067578,19.65597392,1571.5,1571.4,6.461]
[1745147068440,19.98681244,1571.5,1571.4,6.461]
[1745147068640,12.46931901,1571.5,1571.4,6.461]
[1745147075487,7.00017929,1571.5,1571.4,6.461]
[1745147075691,0.93017929,1571.5,1571.4,7.244]
[1745147075848,0.58150311,1571.5,1571.4,7.244]
[1745147076547,4.18411923,1571.6,1571.4,6.461]
[1745147076790,4.18411923,1571.6,1571.5,0.783]
[1745147076984,4.18411923,1571.6,1571.5,1.5074]
[1745147078503,3.0,1571.8,1571.6,0.8047]
[1745147078797,4.18411923,1572.2,1571.8,0.8047]
[1745147078960,4.18411923,1572.2,1572.0,0.8047]
[1745147079157,4.18411923,1572.2,1572.1,61.7777]
[1745147079369,4.18411923,1572.2,1572.1,64.28455612]
[1745147081299,0.1,1572.4,1572.2,0.1414]
[1745147084210,0.1,1572.4,1572.3,6.46]
[1745147086275,0.1,1572.4,1572.3,7.2506]
[1745147092510,0.1,1572.4,1572.3,10.2506]
[1745147092713,0.1,1572.4,1572.3,10.975]
[1745147094176,0.1,1572.4,1572.3,11.03857698]
[1745147094514,0.1,1572.4,1572.3,10.975]
[1745147103286,0.1,1572.4,1572.3,11.03858432]
[1745147103701,0.1,1572.4,1572.3,10.975]
[1745147104698,0.1,1572.4,1572.3,7.975]
[1745147106722,0.1,1572.4,1572.3,6.46]
[1745147107725,0.866,1572.4,1572.3,6.44]
[1745147110620,1.416,1572.4,1572.3,6.44]
[1745147111393,1.99381293,1572.4,1572.3,6.44]
[1745147112734,1.416,1572.4,1572.3,6.44]
[1745147115928,4.416,1572.4,1572.3,6.44]
[1745147116134,5.4646,1572.4,1572.3,6.44]
[1745147117607,0.7637,1572.2,1572.1,54.511]
[1745147117797,0.7637,1572.2,1572.1,60.953]
[1745147118900,1.3137,1572.2,1572.1,60.953]
[1745147119243,1.307,1572.2,1572.1,60.953]
[1745147123128,0.757,1572.2,1572.1,60.953]
[1745147130748,5.49391293,1572.4,1572.1,60.953]
[1745147130946,2.49391293,1572.4,1572.1,60.953]
[1745147131114,1.9161,1572.4,1572.1,60.953]
[1745147131443,4.9161,1572.4,1572.1,60.953]
[1745147133549,5.49618364,1572.4,1572.1,60.953]
[1745147134251,0.40124902,1572.3,1572.1,60.953]
[1745147134553,0.99099229,1572.3,1572.1,60.953]
[1745147134855,0.7675,1572.2,1572.1,60.953]
[1745147135448,1.16874902,1572.2,1572.1,60.953]
[1745147137752,4.16874902,1572.2,1572.1,60.953]
[1745147138250,4.71874902,1572.2,1572.1,60.953]
[1745147138410,5.34249371,1572.2,1572.1,60.953]
[1745147138614,6.27144832,1572.2,1572.1,60.953]
[1745147138827,6.30254832,1572.2,1572.1,60.953]
[1745147142051,0.55,1572.1,1571.4,0.7906]
[1745147142255,0.55,1571.8,1571.6,54.485]
[1745147142559,0.39818621,1571.7,1571.6,54.485]
[1745147143139,3.92895461,1571.9,1571.6,55.2756]
[1745147143451,0.39818621,1571.8,1571.6,55.2756]
[1745147143956,0.39734118,1571.7,1571.6,55.2756]
[1745147144141,3.58008364,1571.9,1571.6,55.2756]
[1745147144328,0.39734118,1571.8,1571.6,55.2756]
[1745147144528,3.58008364,1571.9,1571.6,55.2756]
[1745147145330,0.39734118,1571.8,1571.6,55.2756]
[1745147145533,3.58008364,1571.9,1571.6,55.2756]
[1745147145745,0.39734118,1571.8,1571.6,55.2756]
[1745147145942,3.58008364,1571.9,1571.6,55.2756]
[1745147146142,0.39734118,1571.8,1571.6,55.2756]
[1745147146359,3.58008364,1571.9,1571.6,55.2756]
[1745147146549,0.39734118,1571.8,1571.6,55.2756]
[1745147146863,4.545092,1571.9,1571.6,55.2756]
[1745147147059,0.39734118,1571.7,1571.6,55.2756]
[1745147147221,3.58008364,1571.9,1571.6,55.2756]
[1745147148564,0.39786914,1571.8,1571.6,55.2756]
[1745147148728,3.58008364,1571.9,1571.6,55.2756]
[1745147149064,0.39786914,1571.8,1571.6,55.2756]
[1745147149389,3.58008364,1571.9,1571.6,55.2756]
[1745147149566,0.39786914,1571.7,1571.6,55.2756]
[1745147149731,3.58008364,1571.9,1571.6,55.2756]
[1745147149933,0.39786914,1571.8,1571.6,55.2756]
[1745147150267,3.58008364,1571.9,1571.6,55.2756]
[1745147150451,0.39786914,1571.7,1571.6,55.2756]
[1745147150653,3.58008364,1571.9,1571.6,55.2756]
[1745147150966,0.39786914,1571.8,1571.6,55.2756]
[1745147151166,3.58008364,1571.9,1571.6,55.2756]
[1745147151467,0.39786914,1571.8,1571.6,55.2756]
[1745147151767,3.58008364,1571.9,1571.6,55.2756]
[1745147151932,0.39786914,1571.8,1571.6,55.2756]
[1745147152263,0.58008364,1571.9,1571.7,0.85422228]
[1745147152560,0.58008364,1572.2,1571.7,0.85422228]
[1745147152739,0.58008364,1572.2,1571.7,0.7906]
[1745147153874,6.75008364,1572.4,1571.7,0.7906]
[1745147156679,6.17,1572.4,1571.7,0.7906]
[1745147158347,7.21309758,1572.4,1571.7,0.7906]
[1745147159048,6.17,1572.4,1571.7,0.7906]
[1745147160085,6.75089498,1572.4,1571.7,0.7906]
[1745147161407,6.17,1572.4,1571.7,0.7906]
[1745147163908,4.3061,1572.3,1571.7,0.7906]
[1745147164214,0.33539182,1572.2,1571.8,0.0636134]
[1745147164504,4.88677726,1572.3,1571.9,0.7847]
[1745147164710,0.48867773,1572.2,1571.9,7.1957]
[1745147168910,4.13067726,1572.3,1572.0,54.48]
[1745147169512,3.58067726,1572.3,1572.0,54.48]
[1745147169722,3.0,1572.3,1572.0,54.48]
[1745147169880,3.0,1572.3,1572.1,0.7906]
[1745147170813,6.17,1572.4,1572.1,0.7906]
[1745147171114,6.17,1572.4,1572.1,0.85420437]
[1745147171882,6.17,1572.4,1572.1,0.7906]
[1745147175016,4.70441254,1572.3,1572.2,6.411]
[1745147175383,4.365,1572.3,1572.2,6.411]
[1745147175585,4.94581952,1572.3,1572.2,6.411]
[1745147177125,4.13081952,1572.3,1572.2,6.411]
[1745147181443,4.91401952,1572.3,1572.2,6.411]
[1745147181603,6.02242147,1572.3,1572.2,6.411]
[1745147182123,6.36437262,1572.3,1572.2,6.411]
[1745147182623,6.71359138,1572.3,1572.2,6.411]
[1745147183828,5.38039138,1572.3,1572.2,6.411]
[1745147184125,4.27198943,1572.3,1572.2,7.2016]
[1745147184338,0.34921876,1572.3,1572.2,7.2016]
[1745147184514,6.17,1572.4,1572.2,7.2016]
[1745147184915,0.33972972,1572.3,1572.2,7.2016]
[1745147185125,6.17,1572.4,1572.2,7.92176]
[1745147185423,0.33972972,1572.3,1572.2,7.92176]
[1745147185734,6.17,1572.4,1572.2,7.92176]
[1745147185937,0.33972972,1572.3,1572.2,7.92176]
[1745147186107,6.17,1572.4,1572.2,7.92176]
[1745147186436,0.33972972,1572.3,1572.2,7.92176]
[1745147186811,6.17,1572.4,1572.2,7.92176]
[1745147187911,6.17,1572.4,1572.2,6.411]
[1745147188233,6.17,1572.4,1572.3,54.477]
[1745147188411,9.72,1572.4,1572.3,54.477]
[1745147188612,10.30163367,1572.4,1572.3,54.477]
[1745147188814,10.99214172,1572.4,1572.3,54.477]
[1745147189316,12.16967589,1572.4,1572.3,54.477]
[1745147189731,11.82069595,1572.4,1572.3,54.477]
[1745147197751,11.82069595,1572.4,1572.3,60.871]
[1745147198256,11.82069595,1572.4,1572.3,54.477]
[1745147198451,11.82069595,1572.4,1572.3,60.871]
[1745147198626,12.58439595,1572.4,1572.3,60.871]
[1745147199249,12.93339928,1572.4,1572.3,60.871]
[1745147199748,0.55,1572.1,1572.0,54.478]
[1745147199956,0.88861904,1572.1,1572.0,60.872]
[1745147200408,1.47025271,1572.1,1572.0,60.872]
[1745147201834,2.23475271,1572.1,1572.0,60.872]
[1745147202554,1.65311904,1572.1,1572.0,60.872]
[1745147203061,3.7645,1572.0,1571.2,0.7906]
[1745147203249,0.55,1571.7,1571.2,0.7906]
[1745147203817,0.33692608,1571.6,1571.2,0.7906]
[1745147205426,0.33692608,1571.6,1571.3,60.883]
[1745147205628,0.81806228,1571.6,1571.3,60.883]
[1745147205953,0.55,1571.7,1571.3,60.883]
[1745147206112,0.33692608,1571.6,1571.3,60.883]
[1745147206313,0.55,1571.7,1571.3,60.883]
[1745147206619,0.33692608,1571.6,1571.3,60.883]
[1745147207152,0.55,1571.7,1571.3,60.883]
[1745147207319,1.09095085,1571.6,1571.3,60.883]
[1745147207520,0.7572,1571.6,1571.3,60.883]
[1745147208156,1.23464599,1571.6,1571.3,60.883]
[1745147209751,0.55,1571.5,1571.3,60.883]
[1745147210051,0.88375085,1571.4,1571.3,60.883]
[1745147211770,1.69495085,1571.4,1571.3,54.488]
[1745147212054,0.88375085,1571.4,1571.3,60.884]
[1745147213848,1.63395085,1571.4,1571.3,60.884]
[1745147215664,4.63395085,1571.4,1571.3,60.884]
[1745147215837,5.70434593,1571.4,1571.3,60.884]
[1745147224784,0.33375085,1571.4,1571.3,61.6746]
[1745147224991,6.07,1571.5,1571.3,61.6746]
[1745147226079,0.37645,1571.9,1571.4,0.06363348]
[1745147226279,0.7552,1572.0,1571.5,0.7906]
[1745147226457,0.29500514,1571.8,1571.5,0.7906]
[1745147226662,0.7552,1572.0,1571.5,0.7906]
[1745147226850,0.29500514,1571.7,1571.5,0.7906]
[1745147227189,1.21997677,1572.0,1571.5,0.7906]
[1745147227478,0.29500514,1571.9,1571.5,0.7906]
[1745147227654,0.29500514,1571.9,1571.6,0.85422173]
[1745147227860,0.46477677,1572.0,1571.7,6.381]
[1745147228071,0.55,1572.0,1571.7,6.381]
[1745147228988,0.27042138,1571.9,1571.7,6.381]
[1745147230048,0.7801733,1571.9,1571.7,6.381]
[1745147230281,0.27042138,1571.9,1571.7,6.381]
[1745147231864,0.55,1571.8,1571.7,6.381]
[1745147232279,0.82360263,1571.8,1571.7,6.381]
[1745147233195,0.27360263,1571.8,1571.7,6.381]
[1745147233394,0.57861743,1571.9,1571.7,6.381]
[1745147233568,0.27360263,1571.8,1571.7,6.381]
[1745147233764,2.40571521,1572.0,1571.7,6.381]
[1745147233964,0.82360263,1571.9,1571.5,0.7906]
[1745147234184,0.82360263,1571.9,1571.8,6.38]
[1745147238989,0.27360263,1571.9,1571.8,61.6696]
[1745147239717,3.92680528,1572.1,1571.8,61.6696]
[1745147240078,0.25106751,1572.0,1571.8,61.6696]
[1745147240610,3.57861743,1572.1,1571.8,61.6696]
[1745147240805,0.25106751,1572.0,1571.8,61.6696]
[1745147242563,0.80106751,1572.0,1571.8,54.499]
[1745147242881,1.320006,1572.0,1571.9,6.379]
[1745147243299,1.06893849,1572.0,1571.9,6.379]
[1745147244901,1.320006,1572.0,1571.9,6.379]
[1745147245670,0.55,1571.9,1571.8,54.499]
[1745147245870,0.55,1571.9,1571.8,60.861]
[1745147246171,0.80170368,1571.9,1571.8,60.861]
[1745147246504,1.63270368,1571.9,1571.8,60.861]
[1745147246703,1.3168679,1571.9,1571.8,60.861]
[1745147246878,0.80170368,1571.9,1571.8,61.6516]
[1745147248009,0.25170368,1571.9,1571.8,61.6516]
[1745147248181,0.55,1572.0,1571.8,61.6516]
[1745147248371,0.25499117,1571.9,1571.8,61.6516]
[1745147248967,0.55,1572.0,1571.8,61.6516]
[1745147249166,0.9976479,1572.0,1571.8,61.6516]
[1745147251971,0.25499117,1571.9,1571.8,61.6516]
[1745147254682,3.92647903,1572.1,1571.8,61.6516]
[1745147254877,0.25499117,1571.9,1571.8,61.6516]
[1745147255277,3.57861743,1572.1,1571.8,61.6516]
[1745147255870,0.25499117,1572.0,1571.8,61.6516]
[1745147256067,0.25499117,1572.0,1571.8,60.861]
[1745147256270,0.25499117,1572.0,1571.9,0.7526]
[1745147256469,3.57861743,1572.1,1571.9,0.7526]
[1745147256876,3.0,1572.1,1571.9,0.7526]
[1745147260570,3.0,1572.1,1571.8,61.6136]
[1745147261206,3.58099159,1572.1,1571.8,61.6136]
[1745147263795,0.25880751,1572.0,1571.8,61.6136]
[1745147265271,0.25880751,1572.0,1571.9,0.81620743]
[1745147265478,0.25880751,1572.0,1571.9,0.7526]
[1745147265687,0.1,1572.4,1571.9,0.7526]
[1745147266228,0.25880751,1572.3,1571.9,0.7526]
[1745147271329,0.25880751,1572.3,1572.0,6.361]
[1745147271503,0.25880751,1572.3,1572.0,7.07236]
[1745147271707,0.25880751,1572.3,1572.1,0.7906]
[1745147271899,0.1,1572.4,1572.1,0.7906]
[1745147272406,0.26230504,1572.3,1572.1,0.7906]
[1745147272597,0.26230504,1572.3,1572.2,0.06359764]
[1745147276294,0.26230504,1572.3,1572.2,0.85419764]
[1745147276498,0.26230504,1572.3,1572.2,0.7906]
[1745147276835,0.2628349,1572.3,1572.2,0.7906]
[1745147280506,0.1,1572.4,1572.2,0.7906]
[1745147280921,0.24765922,1572.3,1572.2,0.7906]
[1745147281330,0.1,1572.4,1572.2,0.7906]
[1745147281605,0.24765922,1572.3,1572.2,0.7906]
[1745147281833,0.1,1572.4,1572.2,0.7906]
[1745147282030,0.24765922,1572.3,1572.2,0.7906]
[1745147282207,0.1,1572.4,1572.2,0.7906]
[1745147282403,0.24861378,1572.3,1572.2,0.7906]
[1745147282604,0.1,1572.4,1572.2,55.2656]
[1745147282804,0.24861378,1572.3,1572.2,55.2656]
[1745147283035,0.1,1572.4,1572.2,55.2656]
[1745147283342,1.60621378,1572.3,1572.2,54.475]
[1745147283846,1.3576,1572.3,1572.2,54.475]
[1745147284674,0.55,1572.3,1572.2,54.475]
[1745147284809,1.3576,1572.3,1572.2,54.475]
[1745147285136,1.82598982,1572.3,1572.2,54.475]
[1745147285837,5.65363252,1572.3,1572.2,54.475]
[1745147286049,6.26383551,1572.3,1572.2,54.475]
[1745147288361,5.68310952,1572.3,1572.2,54.475]
[1745147291272,3.79691671,1572.3,1572.2,54.475]
[1745147293855,4.26202264,1572.3,1572.2,54.475]
[1745147294425,4.26202264,1572.3,1572.2,60.818]
[1745147294625,4.01510593,1572.3,1572.2,60.818]
[1745147295724,3.55,1572.3,1572.2,61.6086]
[1745147296157,1.02914481,1572.4,1572.2,61.6086]
[1745147296489,0.24368137,1572.3,1572.2,61.6086]
[1745147297645,0.19368137,1572.3,1572.2,61.6086]
[1745147302457,0.19368137,1572.3,1572.2,62.31026992]
[1745147302664,0.1,1572.4,1572.2,60.818]
[1745147302990,0.1,1572.4,1572.3,0.85417642]
[1745147303159,0.1,1572.4,1572.3,0.7906]
[1745147303910,0.1,1572.4,1572.3,0.7406]
[1745147305578,0.1,1572.4,1572.3,3.0]
[1745147306909,0.1,1572.4,1572.3,3.7406]
[1745147314448,0.1,1572.4,1572.3,3.80417219]
[1745147314594,0.1,1572.4,1572.3,4.50584211]
[1745147314798,0.1,1572.4,1572.3,3.7406]
[1745147315635,0.1,1572.4,1572.3,0.7406]
[1745147315812,0.1,1572.4,1572.3,6.323]
[1745147317301,0.1,1572.4,1572.3,6.38658878]
[1745147317936,0.1,1572.4,1572.3,6.323]
[1745147319750,0.1,1572.4,1572.3,6.38658895]
[1745147321636,0.1,1572.4,1572.3,6.323]
[1745147322944,0.1,1572.4,1572.3,6.38658882]
[1745147323123,0.1,1572.4,1572.3,6.38658885]
[1745147325165,0.1,1572.4,1572.3,6.323]
[1745147325461,0.1,1572.4,1572.3,6.38658216]
[1745147325661,0.1,1572.4,1572.3,6.323]
[1745147328978,0.1,1572.4,1572.3,10.0636]
[1745147329271,0.1,1572.4,1572.3,10.85776992]
[1745147338093,0.1,1572.4,1572.3,10.0636]
[1745147340052,0.1,1572.4,1572.3,10.0456]
[1745147340269,0.1,1572.4,1572.3,10.10917662]
[1745147340588,0.1,1572.4,1572.3,3.7406]
[1745147340760,0.1,1572.4,1572.3,10.0456]
[1745147340956,0.1,1572.4,1572.3,10.10917591]
[1745147341162,0.1,1572.4,1572.3,10.0456]
[1745147341904,0.1,1572.4,1572.3,3.7406]
[1745147342067,0.1,1572.4,1572.3,10.0456]
[1745147345102,0.1,1572.4,1572.3,3.7406]
[1745147345401,0.1,1572.4,1572.3,10.0456]
[1745147345577,0.1,1572.4,1572.3,3.7406]
[1745147345780,0.1,1572.4,1572.3,10.0456]
[1745147350629,0.1,1572.4,1572.3,9.305]
[1745147353178,0.1,1572.4,1572.3,9.36857493]
[1745147353487,0.1,1572.4,1572.3,9.305]
[1745147354143,0.1,1572.4,1572.3,9.36857502]
[1745147355280,0.1,1572.4,1572.3,10.10917502]
[1745147355456,0.1,1572.4,1572.3,10.79170957]
[1745147361091,0.1,1572.4,1572.3,10.0456]
[1745147361576,0.1,1572.4,1572.3,10.85527999]
[1745147362074,0.1,1572.4,1572.3,10.79170957]
[1745147362486,0.1,1572.4,1572.3,10.85527874]
[1745147362785,0.1,1572.4,1572.3,10.79170957]
[1745147364185,0.1,1572.4,1572.3,10.0456]
[1745147366388,0.1,1572.4,1572.3,9.305]
[1745147369934,0.1,1572.4,1572.3,10.0456]
[1745147370429,0.1,1572.4,1572.3,9.305]
[1745147376618,0.1,1572.4,1572.3,9.36857771]
[1745147376954,0.1,1572.4,1572.3,10.85528728]
[1745147379547,0.1,1572.4,1572.3,11.5860923]
[1745147386372,0.3976185,1572.8,1572.3,12.19965817]
[1745147386547,0.3976185,1572.8,1572.4,5.2810923]
[1745147387268,0.3976185,1572.8,1572.4,4.48670957]
[1745147388373,0.3976185,1572.8,1572.5,0.06356424]
[1745147389672,0.3976185,1572.8,1572.4,4.48670957]
[1745147389969,0.8233,1572.7,1572.5,0.44867096]
[1745147391874,0.8233,1572.7,1572.6,54.443]
[1745147392264,0.3976185,1572.8,1572.6,54.443]
[1745147392464,0.3976185,1572.8,1572.7,6.286]
[1745147399786,0.3976185,1572.8,1572.7,9.286]
[1745147402983,0.3976185,1572.8,1572.7,10.08038273]
[1745147403994,0.3976185,1572.8,1572.7,9.286]
[1745147410694,0.3976185,1572.8,1572.7,3.0]
[1745147410891,1.2092185,1572.8,1572.6,54.443]
[1745147411094,0.8116,1572.7,1572.6,54.443]
[1745147411273,0.8116,1572.7,1572.6,60.711]
[1745147412295,0.8116,1572.7,1572.6,60.712]
[1745147413999,1.3616,1572.7,1572.6,60.712]
[1745147420606,1.56051648,1572.7,1572.6,60.712]
[1745147421306,1.56051648,1572.7,1572.6,54.443]
[1745147421508,2.05632998,1572.7,1572.6,60.713]
[1745147421706,1.56051648,1572.7,1572.6,60.713]
[1745147422271,1.3616,1572.7,1572.6,60.713]
[1745147427191,1.53809728,1572.7,1572.6,60.713]
[1745147431937,1.7476682,1572.7,1572.6,60.713]
[1745147440762,4.7476682,1572.7,1572.6,60.713]
[1745147441068,5.32040679,1572.7,1572.6,60.713]
[1745147441974,5.90250604,1572.7,1572.6,60.713]
[1745147443877,5.90250604,1572.7,1572.6,60.697]
[1745147447116,5.90250604,1572.7,1572.6,54.443]
[1745147447415,11.97250604,1572.7,1572.6,60.697]
[1745147447714,12.32087355,1572.7,1572.6,60.697]
[1745147447919,12.32087355,1572.7,1572.6,54.443]
[1745147448125,12.32087355,1572.7,1572.6,60.698]
[1745147451314,12.32087355,1572.7,1572.6,54.443]
[1745147451515,12.32087355,1572.7,1572.6,60.698]
[1745147453521,12.65176849,1572.7,1572.6,60.698]
[1745147458190,12.30340098,1572.7,1572.6,60.698]
[1745147458498,12.65230444,1572.7,1572.6,60.698]
[1745147460188,0.55,1572.6,1572.1,54.471]
[1745147460429,1.363,1572.3,1572.2,6.238]
[1745147461127,1.74332925,1572.3,1572.2,6.238]
[1745147462211,2.3254285,1572.3,1572.2,6.238]
[1745147463053,1.74332925,1572.3,1572.2,6.238]
[1745147464219,5.22191283,1572.3,1572.2,6.238]
[1745147464439,5.80231404,1572.3,1572.2,6.238]
[1745147464709,6.38441329,1572.3,1572.2,6.238]
[1745147464950,12.45441329,1572.3,1572.2,6.238]
[1745147465646,12.80331675,1572.3,1572.2,6.238]
[1745147470454,9.80331675,1572.3,1572.2,6.238]
[1745147470746,12.80331675,1572.3,1572.2,6.238]
[1745147470906,12.45441329,1572.3,1572.2,6.238]
[1745147472653,11.87401208,1572.3,1572.2,6.238]
[1745147472826,7.0324285,1572.3,1572.2,6.9786]
[1745147473555,6.45032925,1572.3,1572.2,6.9786]
[1745147473711,6.62,1572.3,1572.2,6.9786]
[1745147473917,6.62,1572.3,1572.2,7.4786]
[1745147474117,6.07,1572.3,1572.2,7.4786]
[1745147474752,6.97266639,1572.3,1572.2,7.4786]
[1745147476763,0.55,1572.3,1572.2,7.4786]
[1745147478251,0.90585643,1572.3,1572.2,7.4786]
[1745147480103,0.55,1572.3,1572.2,7.4786]
[1745147481831,0.90585643,1572.3,1572.2,7.4786]
[1745147484844,0.35585643,1572.3,1572.2,7.4786]
[1745147485043,0.55,1572.5,1572.2,7.4786]
[1745147485242,0.34200817,1572.3,1572.2,7.4786]
[1745147485443,0.55,1572.5,1572.2,7.4786]
[1745147485745,0.34200817,1572.3,1572.2,7.4786]
[1745147485939,1.01730648,1572.5,1572.2,7.4786]
[1745147486172,0.34200817,1572.3,1572.2,7.4786]
[1745147486338,1.01730648,1572.5,1572.2,7.4786]
[1745147486878,0.34200817,1572.4,1572.2,7.4786]
[1745147487939,0.34200817,1572.4,1572.3,0.7406]
[1745147488341,3.5806166,1572.6,1572.3,0.7406]
[1745147488538,0.34264667,1572.4,1572.3,0.7406]
[1745147488744,0.5806166,1572.6,1572.3,0.7406]
[1745147489474,0.34264667,1572.5,1572.3,0.7406]
[1745147489854,0.5806166,1572.6,1572.3,0.7406]
[1745147490083,0.34264667,1572.4,1572.3,3.7406]
[1745147490381,0.5806166,1572.6,1572.4,0.7406]
[1745147490882,0.34264667,1572.5,1572.4,0.7406]
[1745147491181,0.3976185,1572.8,1572.4,0.7406]
[1745147491383,0.34264667,1572.7,1572.4,0.7406]
[1745147493788,0.34264667,1572.7,1572.3,4.12729827]
[1745147493789,0.34264667,1572.7,1572.5,0.06357832]
[1745147493971,0.34264667,1572.7,1572.6,6.9616]
[1745147494177,0.34264667,1572.7,1572.6,7.65776]
[1745147494890,0.34264667,1572.7,1572.6,6.91716]
[1745147495201,0.34264667,1572.7,1572.6,7.65776]
[1745147496690,0.3976185,1572.8,1572.6,7.65776]
[1745147496857,0.3976185,1572.8,1572.7,0.06357562]
[1745147498283,0.3976185,1572.8,1572.7,0.83570918]
[1745147498490,0.3976185,1572.8,1572.6,6.9616]
[1745147499103,0.3976185,1572.8,1572.7,0.06357577]
[1745147499475,0.3976185,1572.8,1572.6,6.9616]
[1745147500598,0.3976185,1572.8,1572.7,0.0635758]
[1745147500966,0.3976185,1572.8,1572.6,6.9616]